lending/lending_fUSD_20260222
["ID","MTS","AMOUNT","RATE_DAILY","PERIOD"]
[406318643,1771733444066,-174.949135,0.0003318,31]
[406318644,1771733444075,-174.949127,0.0003318,31]
[406318645,1771733444085,-177.979843,0.0003318,31]
[406318646,1771733444095,-177.979843,0.0003318,31]
[406318647,1771733444104,-177.979843,0.0003318,31]
[406318648,1771733444113,-177.979846,0.0003318,31]
[406318649,1771733444122,-351.470842,0.0003318,31]
[406318650,1771733444132,-351.470842,0.0003318,31]
[406318651,1771733444141,-351.470842,0.0003318,31]
[406318652,1771733444151,-351.470842,0.0003318,31]
[406318653,1771733444160,-261.694045,0.0003318,30]
[406318654,1771733444169,-261.694045,0.0003318,30]
[406318655,1771733444178,-261.694045,0.0003318,30]
[406318656,1771733444187,-261.694051,0.0003318,30]
[406318657,1771733444197,-151.0,0.0003318,31]
[406318658,1771733444206,-178.427947,0.0003318,14]
[406318659,1771733444215,-178.427947,0.0003318,14]
[406318660,1771733444224,-178.427947,0.0003318,14]
[406318661,1771733444233,-178.427941,0.0003318,14]
[406318662,1771733444242,-260.411559,0.0003318,31]
[406318663,1771733444251,-260.411559,0.0003318,31]
[406318664,1771733444261,-260.411559,0.0003318,31]
[406318665,1771733444271,-260.411559,0.0003318,31]
[406318666,1771733444280,-1154.043842,0.0003318,31]
[406318667,1771733444290,-1154.043842,0.0003318,31]
[406318668,1771733444299,-1154.043842,0.0003318,31]
[406318669,1771733444308,-305.099487,0.0003318,7]
[406318670,1771733444317,-1154.043842,0.0003318,31]
[406318671,1771733444326,-305.099487,0.0003318,7]
[406318672,1771733444335,-305.099487,0.0003318,7]
[406318673,1771733444345,-305.09948,0.0003318,7]
[406318674,1771733444354,-151.0,0.00033203,31]
[406318675,1771733444364,-151.0,0.00033203,31]
[406318676,1771733444373,-151.0,0.00033203,31]
[406318677,1771733444383,-151.0,0.00033203,31]
[406318678,1771733444392,-153.043718,0.00033203,31]
[406318679,1771733444401,-1153.304,0.00033203,35]
[406318680,1771733444410,-172.196,0.00033203,35]
[406318681,1771733444419,-151.0,0.00033203,31]
[406318682,1771733444428,-151.0,0.00033203,31]
[406318683,1771733444439,-150.0,0.00033203,2]
[406318684,1771733444448,-500.0,0.00033203,2]
[406318685,1771733444458,-1134.2349,0.00033232,31]
[406318686,1771733444468,-1134.2349,0.00033232,31]
[406318687,1771733444477,-1134.2349,0.00033232,31]
[406318688,1771733444487,-1134.2349,0.00033232,31]
[406318689,1771733444496,-151.0,0.00033232,31]
[406318690,1771733444505,-151.0,0.00033232,31]
[406318691,1771733444514,-869.512043,0.00033232,31]
[406318692,1771733444524,-869.512043,0.00033232,31]
[406318693,1771733444533,-869.512043,0.00033232,31]
[406318694,1771733444542,-869.512043,0.00033232,31]
[406318695,1771733444551,-250.0,0.00033258,2]
[406318696,1771733444560,-500.0,0.00033258,2]
[406318697,1771733444569,-151.0,0.00033258,31]
[406318698,1771733444578,-1003.9220451,0.00033258,2]
[406318699,1771733444587,-2000.0,0.00033258,40]
[406318700,1771733444596,-500.0,0.00033313,2]
[406318701,1771733444605,-557.8230869,0.00033368,2]
[406318702,1771733444614,-510.854,0.000334,2]
[406318703,1771733444623,-166.66,0.00033418,30]
[406318704,1771733444632,-2000.0,0.00033458,40]
[406318705,1771733444642,-151.0,0.00033477,31]
[406318706,1771733444651,-277.184074,0.00033477,31]
[406318707,1771733444660,-869.512043,0.00033477,31]
[406318708,1771733444670,-869.512043,0.00033477,31]
[406318709,1771733444679,-869.512043,0.00033477,31]
[406318710,1771733444687,-869.512048,0.00033477,31]
[406318711,1771733444696,-406.111002,0.00033477,31]
[406318712,1771733444706,-406.111002,0.00033477,31]
[406318713,1771733444715,-406.111002,0.00033477,31]
[406318714,1771733444723,-406.111006,0.00033477,31]
[406318715,1771733444732,-156.52265,0.00033577,31]
[406318716,1771733444742,-260.411559,0.00033577,31]
[406318717,1771733444751,-260.411559,0.00033577,31]
[406318718,1771733444760,-260.411559,0.00033577,31]
[406318719,1771733444769,-260.411557,0.00033577,31]
[406318720,1771733444779,-1154.043842,0.00033577,31]
[406318721,1771733444788,-1154.043842,0.00033577,31]
[406318722,1771733444798,-1154.043842,0.00033577,31]
[406318723,1771733444807,-1154.043841,0.00033577,31]
[406318724,1771733444816,-487.0,0.00033577,2]
[406318725,1771733444825,-487.0,0.00033577,2]
[406318726,1771733444834,-487.0,0.00033577,2]
[406318727,1771733444847,-487.0,0.00033577,2]
[406318728,1771733444857,-487.0,0.00033577,2]
[406318729,1771733444866,-487.0,0.00033577,2]
[406318730,1771733444875,-487.0,0.00033577,2]
[406318731,1771733444886,-682.84,0.00033577,2]
[406318732,1771733444895,-5698.0,0.00033578,5]
[406318733,1771733444905,-331.60898751,0.00033578,8]
[406318734,1771733444916,-151.0,0.00033642,31]
[406318735,1771733444925,-151.0,0.00033642,31]
[406318736,1771733444934,-151.0,0.00033642,31]
[406318737,1771733444943,-151.0,0.00033642,31]
[406318738,1771733444952,-151.0,0.00033642,31]
[406318739,1771733444961,-1134.2349,0.00033642,31]
[406318740,1771733444970,-1134.2349,0.00033642,31]
[406318741,1771733444980,-1134.2349,0.00033642,31]
[406318742,1771733444989,-1134.234904,0.00033642,31]
[406318743,1771733444997,-151.0,0.00033642,31]
[406318744,1771733445007,-151.0,0.00033642,31]
[406318745,1771733445016,-258.346513,0.00033642,31]
[406318746,1771733445026,-165.946616,0.00033642,31]
[406318747,1771733445035,-151.0,0.00033642,31]
[406318748,1771733445044,-151.0,0.00033642,31]
[406318749,1771733445054,-151.0,0.00033642,31]
[406318750,1771733445063,-2000.0,0.00033658,40]
[406318751,1771733445072,-150.0,0.00033747,2]
[406318752,1771733445082,-623.01963681,0.00033801,2]
[406318753,1771733445091,-1225.10533445,0.00033801,2]
[406318754,1771733445100,-2000.0,0.00033858,40]
[406318755,1771733445109,-166.66,0.00033889,2]
[406318756,1771733445118,-2000.0,0.00034058,40]
[406318757,1771733445127,-350.0,0.00034061,2]
[406318758,1771733445135,-211.8,0.000341,10]
[406318759,1771733445145,-309.0,0.000341,2]
[406318760,1771733445154,-747.8093786,0.00034168,2]
[406318761,1771733445163,-689.24638722,0.000342,2]
[406318762,1771733445172,-1120.0,0.00034215,7]
[406318763,1771733445181,-2000.0,0.00034258,40]
[406318764,1771733445190,-193.32,0.00034705,30]
[406318765,1771733445199,-1120.0,0.00034753,2]
[406318766,1771733445208,-318.13745498,0.00035,120]
[406318767,1771733445217,-200.0,0.00035,60]
[406318768,1771733445227,-352.92806897,0.00035014,2]
[406318769,1771733445236,-303.0,0.000351,2]
[406318770,1771733445246,-989.0,0.000351,2]
[406318771,1771733445255,-166.66,0.0003518,2]
[406318772,1771733445264,-1999.0,0.00035185,7]
[406318773,1771733445273,-623.01963681,0.00035199,2]
[406318775,1771733445282,-1225.10533445,0.00035199,2]
[406318777,1771733445291,-1120.0,0.00035204,7]
[406318779,1771733445300,-1382.0,0.00035285,7]
[406318780,1771733445309,-1003.72,0.00035311,120]
[406318782,1771733445318,-606.0,0.00035366,120]
[406318784,1771733445327,-151.0,0.00035369,31]
[406318787,1771733445336,-151.0,0.00035369,31]
[406318788,1771733445346,-151.0,0.00035369,31]
[406318789,1771733445355,-151.0,0.00035369,31]
[406318790,1771733445364,-1120.0,0.00035369,2]
[406318791,1771733445374,-606.0,0.00035425,7]
[406318792,1771733445383,-1120.0,0.00035441,120]
[406318793,1771733445392,-350.0,0.00035469,2]
[406318794,1771733445402,-151.0,0.00035572,31]
[406318795,1771733445411,-1382.0,0.00035572,120]
[406318796,1771733445422,-163.026035,0.00035616,31]
[406318797,1771733445431,-606.0,0.00035637,2]
[406318798,1771733445440,-350.0,0.00035659,2]
[406318799,1771733445451,-169.44,0.00035738,2]
[406318800,1771733445460,-606.0,0.00035819,2]
[406318801,1771733445470,-350.0,0.00035956,2]
[406318802,1771733445479,-606.0,0.00035974,2]
[406318803,1771733445489,-159.38,0.00035988,2]
[406318804,1771733445498,-689.24638722,0.00035998,2]
[406318805,1771733445508,-606.0,0.00036025,7]
[406318806,1771733445517,-151.0,0.00036031,31]
[406318807,1771733445526,-151.0,0.00036031,31]
[406318808,1771733445536,-151.0,0.00036031,31]
[406318809,1771733445545,-151.0,0.00036031,31]
[406318810,1771733445554,-606.0,0.00036139,7]
[406318811,1771733445563,-350.0,0.00036193,2]
[406318812,1771733445573,-197.0,0.00036358,7]
[406318813,1771733445582,-197.0,0.00036422,120]
[406318814,1771733445591,-606.0,0.00036427,2]
[406318815,1771733445601,-1000.0,0.00036434,2]
[406318816,1771733445611,-166.66,0.00036472,2]
[406318817,1771733445620,-2454.0,0.00036528,2]
[406318818,1771733445629,-1945.034,0.00036528,2]
[406318819,1771733445638,-923.305,0.00036528,2]
[406318820,1771733445647,-197.0,0.0003659,7]
[406318821,1771733445657,-623.01963681,0.00036598,2]
[406318822,1771733445668,-1225.10533445,0.00036598,2]
[406318823,1771733445679,-197.0,0.00036645,2]
[406318824,1771733445688,-197.0,0.00036669,2]
[406318825,1771733445699,-606.0,0.0003671,2]
[406318826,1771733445709,-166.7,0.00036725,2]
[406318827,1771733445719,-775.47832561,0.00036907,2]
[406318828,1771733445728,-197.0,0.00036914,2]
[406318829,1771733445739,-169.42622667,0.00036916,2]
[406318830,1771733445748,-197.0,0.00036972,7]
[406318841,1771733445758,-197.0,0.00036984,2]
[406318843,1771733445908,-234.66,0.00037074,14]
[406318845,1771733445918,-1445.328146,0.00037095,60]
[406318847,1771733445927,-11245.76387,0.00037095,60]
[406318849,1771733445936,-351.98,0.00037114,14]
[406318852,1771733445947,-197.0,0.00037265,2]
[406318853,1771733445956,-166.29,0.00037649,2]
[406318855,1771733445965,-168.64861402,0.00037649,2]
[406318857,1771733445974,-152.0,0.00037755,3]
[406318859,1771733445983,-689.24638722,0.00037796,2]
[406318861,1771733445991,-623.01963681,0.00037996,2]
[406318863,1771733446001,-1225.10533445,0.00037996,2]
[406318865,1771733446010,-195.0,0.00038201,30]
[406318867,1771733446018,-618.0,0.00038339,2]
[406318869,1771733446027,-469.049,0.00038339,2]
[406318871,1771733446037,-1276.0,0.00038339,2]
[406318873,1771733446046,-169.44,0.00038344,2]
[406318876,1771733446056,-199.2,0.00038631,30]
[406318878,1771733446068,-193.32,0.00038734,30]
[406318880,1771733446078,-159.38,0.00038796,2]
[406318882,1771733446087,-159.58835011,0.00038838,2]
[406318884,1771733446095,-623.052,0.00038888,30]
[406318886,1771733446104,-808.05372218,0.000389,120]
[406318888,1771733446113,-1598.81206057,0.00039,120]
[406318890,1771733446123,-508.54110597,0.000391,120]
[406318892,1771733446132,-1003.72,0.00039235,120]
[406318894,1771733446141,-175.87,0.00039293,2]
[406318896,1771733446150,-1038.5,0.00039293,30]
[406318898,1771733446159,-623.01963681,0.00039395,2]
[406318900,1771733446168,-1225.10533445,0.00039395,2]
[406318902,1771733446178,-1659.913,0.00039528,2]
[406318904,1771733446187,-689.24638722,0.00039595,2]
[406318906,1771733446197,-538.76630018,0.00039646,2]
[406318908,1771733446206,-3037.07,0.00039807,2]
[406318910,1771733446215,-1038.5,0.00039955,30]
[406318911,1771733446224,-151.0,0.0004,120]
[406318912,1771733446233,-171.32821553,0.0004,120]
[406318913,1771733446242,-204.53979867,0.0004,14]
[406318914,1771733446251,-166.96118965,0.0004,30]
[406318915,1771733446264,-152.2170662,0.0004,2]
[406318916,1771733446273,-696.26,0.0004,120]
[406318917,1771733446283,-272.54,0.0004,120]
[406318918,1771733446292,-349.92,0.0004,120]
[406318919,1771733446301,-1000.0,0.00040482,2]
[406318921,1771733446311,-855.68345202,0.00040599,2]
[406318923,1771733446320,-884.4819891,0.00040599,2]
[406318925,1771733446329,-300.0,0.00040599,2]
[406318927,1771733446338,-307.27731077,0.00040599,2]
[406318930,1771733446347,-458.78505011,0.00040599,2]
[406318931,1771733446357,-371.39458192,0.00040599,2]
[406318934,1771733446366,-306.23261478,0.00040599,2]
[406318936,1771733446376,-369.63094376,0.00040599,2]
[406318938,1771733446386,-855.68345202,0.00040599,2]
[406318940,1771733446395,-884.4819891,0.00040599,2]
[406318941,1771733446404,-300.0,0.00040599,2]
[406318943,1771733446413,-307.27731077,0.00040599,2]
[406318946,1771733446423,-458.78505011,0.00040599,2]
[406318948,1771733446435,-371.39458192,0.00040599,2]
[406318950,1771733446444,-695.58939955,0.00040599,2]
[406318951,1771733446453,-410.69659086,0.00040599,2]
[406318954,1771733446465,-1081.79077738,0.00040599,2]
[406318956,1771733446475,-1147.39365366,0.00040599,2]
[406318958,1771733446484,-884.4819891,0.00040599,2]
[406318960,1771733446493,-300.0,0.00040599,2]
[406318962,1771733446502,-412.03060836,0.00040599,2]
[406318964,1771733446511,-615.18854579,0.00040599,2]
[406318966,1771733446522,-497.92498815,0.00040599,2]
[406318967,1771733446531,-301.52694728,0.00040599,2]
[406318968,1771733446541,-300.0,0.00040599,2]
[406318969,1771733446550,-300.0,0.00040599,2]
[406318970,1771733446560,-300.0,0.00040599,2]
[406318971,1771733446569,-300.0,0.00040599,2]
[406318972,1771733446579,-300.0,0.00040599,2]
[406318973,1771733446588,-390.01097489,0.00040599,2]
[406318974,1771733446597,-350.82943142,0.00040599,2]
[406318975,1771733446607,-1038.5,0.00040617,30]
[406318976,1771733446616,-151.0,0.000407,120]
[406318977,1771733446626,-1495.39161939,0.00040714,2]
[406318978,1771733446635,-1016.7,0.00040755,2]
[406318979,1771733446644,-623.01963681,0.00040793,15]
[406318980,1771733446653,-200.0,0.00040793,120]
[406318981,1771733446667,-1225.10533445,0.00040793,15]
[406318982,1771733446676,-66400.0,0.0004095,60]
[406318983,1771733446686,-726.67485229,0.00041,30]
[406318984,1771733446695,-940.03514773,0.00041,120]
[406318985,1771733446704,-321.86856565,0.00041095,120]
[406318986,1771733446714,-842.0,0.00041096,120]
[406318987,1771733446723,-260.94,0.00041096,120]
[406318988,1771733446732,-151.0,0.00041096,120]
[406318989,1771733446741,-151.0,0.00041096,120]
[406318990,1771733446750,-151.0,0.00041096,120]
[406318991,1771733446759,-151.0,0.00041096,120]
[406318992,1771733446769,-151.0,0.00041096,120]
[406318993,1771733446778,-151.0,0.00041096,120]
[406318994,1771733446787,-154.298553,0.00041096,120]
[406318995,1771733446796,-151.0,0.00041096,120]
[406318996,1771733446806,-151.0,0.00041096,120]
[406318997,1771733446815,-151.0,0.00041096,120]
[406318998,1771733446824,-151.0,0.00041096,120]
[406318999,1771733446833,-151.0,0.00041096,120]
[406319000,1771733446843,-172.36807,0.00041096,120]
[406319001,1771733446857,-160.287084,0.00041096,120]
[406319002,1771733446866,-151.0,0.00041096,120]
[406319003,1771733446875,-151.0,0.00041096,120]
[406319004,1771733446886,-151.0,0.00041096,120]
[406319005,1771733446895,-151.0,0.00041096,120]
[406319006,1771733446905,-151.0,0.00041096,120]
[406319007,1771733446915,-151.0,0.00041096,120]
[406319008,1771733446924,-151.0,0.00041096,120]
[406319009,1771733446934,-151.0,0.00041096,120]
[406319010,1771733446944,-151.0,0.00041096,120]
[406319011,1771733446953,-151.0,0.00041096,120]
[406319012,1771733446963,-151.0,0.00041096,120]
[406319013,1771733446973,-151.0,0.00041096,120]
[406319014,1771733446982,-151.0,0.00041096,120]
[406319015,1771733446992,-151.0,0.00041096,120]
[406319016,1771733447001,-151.0,0.00041096,120]
[406319017,1771733447010,-151.0,0.00041096,120]
[406319018,1771733447019,-151.0,0.00041096,120]
[406319019,1771733447029,-155.576787,0.00041096,120]
[406319020,1771733447038,-151.0,0.00041096,120]
[406319021,1771733447048,-151.0,0.00041096,120]
[406319022,1771733447059,-151.0,0.00041096,120]
[406319023,1771733447068,-151.0,0.00041096,120]
[406319024,1771733447077,-151.0,0.00041096,120]
[406319025,1771733447087,-151.0,0.00041096,120]
[406319026,1771733447096,-151.0,0.00041096,120]
[406319027,1771733447106,-173.564586,0.00041096,120]
[406319028,1771733447116,-154.631213,0.00041096,120]
[406319029,1771733447125,-151.0,0.00041096,120]
[406319030,1771733447134,-151.0,0.00041096,120]
[406319031,1771733447143,-151.0,0.00041096,120]
[406319032,1771733447152,-258.136991,0.00041096,120]
[406319033,1771733447161,-151.0,0.00041096,120]
[406319034,1771733447170,-151.0,0.00041096,120]
[406319035,1771733447179,-151.0,0.00041096,120]
[406319036,1771733447188,-301.991158,0.00041096,120]
[406319037,1771733447199,-151.0,0.00041096,120]
[406319038,1771733447208,-151.0,0.00041096,120]
[406319039,1771733447218,-151.0,0.00041096,120]
[406319040,1771733447227,-151.0,0.00041096,120]
[406319041,1771733447236,-151.0,0.00041096,120]
[406319042,1771733447245,-151.0,0.00041096,120]
[406319043,1771733447255,-151.0,0.00041096,120]
[406319044,1771733447264,-297.943535,0.00041096,120]
[406319045,1771733447273,-151.0,0.00041096,120]
[406319046,1771733447282,-151.0,0.00041096,120]
[406319047,1771733447292,-151.0,0.00041096,120]
[406319048,1771733447301,-153.609688,0.00041096,120]
[406319049,1771733447311,-151.0,0.00041096,120]
[406319050,1771733447320,-151.0,0.00041096,120]
[406319051,1771733447330,-151.0,0.00041096,120]
[406319052,1771733447339,-151.0,0.00041096,120]
[406319053,1771733447349,-151.0,0.00041096,120]
[406319054,1771733447359,-151.0,0.00041096,120]
[406319055,1771733447368,-298.871056,0.00041096,120]
[406319056,1771733447377,-151.0,0.00041096,120]
[406319057,1771733447386,-156.765999,0.00041096,120]
[406319058,1771733447395,-151.0,0.00041096,120]
[406319059,1771733447406,-151.0,0.00041096,120]
[406319060,1771733447416,-151.0,0.00041096,120]
[406319061,1771733447425,-151.0,0.00041096,120]
[406319062,1771733447434,-151.0,0.00041096,120]
[406319063,1771733447445,-151.0,0.00041096,120]
[406319064,1771733447463,-151.0,0.00041096,120]
[406319065,1771733447474,-153.015754,0.00041096,120]
[406319066,1771733447483,-151.0,0.00041096,120]
[406319067,1771733447492,-151.0,0.00041096,120]
[406319068,1771733447502,-151.0,0.00041096,120]
[406319069,1771733447511,-151.0,0.00041096,120]
[406319070,1771733447520,-151.0,0.00041096,120]
[406319071,1771733447530,-151.0,0.00041096,120]
[406319072,1771733447539,-151.0,0.00041096,120]
[406319073,1771733447549,-153.943146,0.00041096,120]
[406319074,1771733447558,-151.0,0.00041096,120]
[406319075,1771733447567,-151.0,0.00041096,120]
[406319076,1771733447576,-151.0,0.00041096,120]
[406319077,1771733447586,-151.0,0.00041096,120]
[406319078,1771733447595,-151.0,0.00041096,120]
[406319079,1771733447604,-156.928248,0.00041096,120]
[406319080,1771733447613,-160.333141,0.00041096,120]
[406319081,1771733447622,-151.0,0.00041096,120]
[406319082,1771733447632,-151.0,0.00041096,120]
[406319083,1771733447641,-151.0,0.00041096,120]
[406319084,1771733447651,-151.0,0.00041096,120]
[406319085,1771733447660,-151.0,0.00041096,120]
[406319086,1771733447670,-151.0,0.00041096,120]
[406319087,1771733447679,-151.0,0.00041096,120]
[406319088,1771733447693,-151.0,0.00041096,120]
[406319089,1771733447702,-500.0,0.00041096,2]
[406319090,1771733447711,-151.0,0.00041096,120]
[406319091,1771733447720,-500.0,0.00041096,2]
[406319092,1771733447729,-151.0,0.00041096,120]
[406319093,1771733447738,-500.0,0.00041096,2]
[406319094,1771733447747,-500.0,0.00041096,2]
[406319095,1771733447756,-500.0,0.00041096,2]
[406319096,1771733447765,-500.0,0.00041096,2]
[406319097,1771733447775,-500.0,0.00041096,2]
[406319098,1771733447784,-500.0,0.00041096,2]
[406319099,1771733447793,-151.0,0.00041096,120]
[406319100,1771733447802,-500.0,0.00041096,2]
[406319101,1771733447811,-151.0,0.00041096,120]
[406319102,1771733447820,-500.0,0.00041096,2]
[406319103,1771733447829,-151.0,0.00041096,120]
[406319104,1771733447844,-500.0,0.00041096,2]
[406319105,1771733447863,-151.0,0.00041096,120]
[406319106,1771733447873,-500.0,0.00041096,2]
[406319107,1771733447883,-156.129061,0.00041096,120]
[406319108,1771733447893,-500.0,0.00041096,2]
[406319109,1771733447904,-500.0,0.00041096,2]
[406319110,1771733447915,-500.0,0.00041096,2]
[406319111,1771733447926,-500.0,0.00041096,2]
[406319112,1771733447937,-500.0,0.00041096,2]
[406319113,1771733447947,-500.0,0.00041096,2]
[406319114,1771733447957,-500.0,0.00041096,2]
[406319115,1771733447967,-500.0,0.00041096,2]
[406319116,1771733447976,-151.0,0.00041096,120]
[406319117,1771733447986,-151.0,0.00041096,120]
[406319118,1771733447996,-151.0,0.00041096,120]
[406319119,1771733448006,-151.0,0.00041096,120]
[406319120,1771733448015,-151.0,0.00041096,120]
[406319121,1771733448025,-151.0,0.00041096,120]
[406319122,1771733448035,-151.0,0.00041096,120]
[406319123,1771733448044,-151.0,0.00041096,120]
[406319124,1771733448054,-151.0,0.00041096,120]
[406319125,1771733448063,-151.0,0.00041096,120]
[406319126,1771733448073,-151.0,0.00041096,120]
[406319127,1771733448082,-155.685356,0.00041096,120]
[406319128,1771733448092,-151.0,0.00041096,120]
[406319129,1771733448105,-151.0,0.00041096,120]
[406319130,1771733448126,-151.0,0.00041096,120]
[406319131,1771733448138,-151.0,0.00041096,120]
[406319132,1771733448147,-256.520169,0.00041096,120]
[406319133,1771733448156,-151.0,0.00041096,120]
[406319134,1771733448165,-151.0,0.00041096,120]
[406319135,1771733448175,-151.0,0.00041096,120]
[406319136,1771733448185,-151.0,0.00041096,120]
[406319137,1771733448195,-151.0,0.00041096,120]
[406319138,1771733448204,-151.0,0.00041096,120]
[406319139,1771733448213,-281.47441,0.00041096,120]
[406319140,1771733448223,-151.0,0.00041096,120]
[406319141,1771733448234,-151.0,0.00041096,120]
[406319142,1771733448243,-170.623343,0.00041096,120]
[406319143,1771733448256,-151.0,0.00041096,120]
[406319144,1771733448266,-151.0,0.00041096,120]
[406319145,1771733448276,-151.0,0.00041096,120]
[406319146,1771733448286,-151.0,0.00041096,120]
[406319147,1771733448295,-151.0,0.00041096,120]
[406319148,1771733448304,-168.67061,0.00041096,120]
[406319149,1771733448314,-151.0,0.00041096,120]
[406319150,1771733448323,-151.0,0.00041096,120]
[406319151,1771733448333,-151.0,0.00041096,120]
[406319152,1771733448342,-151.0,0.00041096,120]
[406319153,1771733448352,-159.247262,0.00041096,120]
[406319154,1771733448361,-151.0,0.00041096,120]
[406319155,1771733448371,-151.0,0.00041096,120]
[406319156,1771733448380,-151.0,0.00041096,120]
[406319157,1771733448389,-151.0,0.00041096,120]
[406319158,1771733448399,-151.0,0.00041096,120]
[406319159,1771733448409,-151.0,0.00041096,120]
[406319160,1771733448418,-151.0,0.00041096,120]
[406319161,1771733448428,-151.0,0.00041096,120]
[406319162,1771733448437,-151.0,0.00041096,120]
[406319163,1771733448446,-163.246615,0.00041096,120]
[406319164,1771733448456,-151.0,0.00041096,120]
[406319165,1771733448465,-151.0,0.00041096,120]
[406319166,1771733448474,-151.0,0.00041096,120]
[406319167,1771733448484,-151.0,0.00041096,120]
[406319168,1771733448493,-151.0,0.00041096,120]
[406319169,1771733448502,-151.0,0.00041096,120]
[406319170,1771733448511,-151.0,0.00041096,120]
[406319171,1771733448520,-151.0,0.00041096,120]
[406319172,1771733448530,-151.0,0.00041096,120]
[406319173,1771733448539,-188.12045,0.00041096,120]
[406319174,1771733448549,-188.12045,0.00041096,120]
[406319175,1771733448558,-188.12045,0.00041096,120]
[406319176,1771733448568,-188.12045,0.00041096,120]
[406319177,1771733448577,-188.12045,0.00041096,120]
[406319178,1771733448587,-188.12045,0.00041096,120]
[406319179,1771733448596,-188.12045,0.00041096,120]
[406319180,1771733448606,-188.12045,0.00041096,120]
[406319181,1771733448615,-188.12045,0.00041096,120]
[406319182,1771733448625,-188.12045,0.00041096,120]
[406319183,1771733448634,-188.12045,0.00041096,120]
[406319184,1771733448646,-188.12045,0.00041096,120]
[406319185,1771733448655,-188.12045,0.00041096,120]
[406319186,1771733448665,-188.12045,0.00041096,120]
[406319187,1771733448674,-188.12045,0.00041096,120]
[406319188,1771733448683,-188.12045,0.00041096,120]
[406319189,1771733448693,-188.12045,0.00041096,120]
[406319190,1771733448702,-188.12045,0.00041096,120]
[406319191,1771733448712,-188.12045,0.00041096,120]
[406319192,1771733448722,-188.120448,0.00041096,120]
[406319193,1771733448731,-302.347478,0.00041096,120]
[406319194,1771733448740,-302.347478,0.00041096,120]
[406319195,1771733448749,-302.347478,0.00041096,120]
[406319196,1771733448759,-302.347478,0.00041096,120]
[406319197,1771733448768,-302.347478,0.00041096,120]
[406319198,1771733448777,-302.347478,0.00041096,120]
[406319199,1771733448787,-302.347478,0.00041096,120]
[406319200,1771733448796,-302.347478,0.00041096,120]
[406319201,1771733448806,-302.347478,0.00041096,120]
[406319202,1771733448815,-302.347478,0.00041096,120]
[406319203,1771733448825,-302.347478,0.00041096,120]
[406319204,1771733448835,-302.347478,0.00041096,120]
[406319205,1771733448846,-302.347478,0.00041096,120]
[406319206,1771733448856,-302.347478,0.00041096,120]
[406319207,1771733448865,-302.347478,0.00041096,120]
[406319208,1771733448875,-302.347478,0.00041096,120]
[406319209,1771733448886,-302.347478,0.00041096,120]
[406319210,1771733448895,-302.347478,0.00041096,120]
[406319211,1771733448904,-302.347478,0.00041096,120]
[406319212,1771733448913,-302.347468,0.00041096,120]
[406319213,1771733448925,-151.0,0.00041096,120]
[406319214,1771733448934,-151.0,0.00041096,120]
[406319215,1771733448944,-151.0,0.00041096,120]
[406319216,1771733448953,-151.0,0.00041096,120]
[406319217,1771733448963,-151.0,0.00041096,120]
[406319218,1771733448972,-151.0,0.00041096,120]